[Event "Titled Tuesday Blitz August 08 Late 2023"]
[White "Bilan, Danila"]
[Black "Lysyj, Igor"]
[WhiteFideId "24161918"]
[BlackFideId "4150120"]
[WhiteElo "2591"]
[BlackElo "2823"]
[Result "0-1"]
[Round "6"]
[TimeControl "180+1"]
[Date "2023.08.08"]
[WhiteClock "0:00:02"]
[BlackClock "0:00:08"]
[Board "32"]

1. d4 {[%clk 0:03:00]}  d5 {[%clk 0:02:59]} 2. Nf3 {[%clk 0:03:00]}  Nf6 {[%clk 0:02:58]} 3. c4 {[%clk 0:03:01]}  e6 {[%clk 0:02:57]} 4. Nc3 {[%clk 0:03:01]}  Be7 {[%clk 0:02:56]} 5. Bf4 {[%clk 0:03:00]}  dxc4 {[%clk 0:02:56]} 6. e3 {[%clk 0:02:58]}  a6 {[%clk 0:02:56]} 7. Bxc4 {[%clk 0:02:57]}  b5 {[%clk 0:02:55]} 8. Be2 {[%clk 0:02:57]}  Nbd7 {[%clk 0:02:55]} 9. a3 {[%clk 0:02:47]}  O-O {[%clk 0:02:17]} 10. Ne5 {[%clk 0:02:29]}  Nxe5 {[%clk 0:02:16]} 11. Bxe5 {[%clk 0:02:26]}  Bb7 {[%clk 0:02:15]} 12. Bf3 {[%clk 0:02:25]}  Bxf3 {[%clk 0:02:15]} 13. Qxf3 {[%clk 0:02:26]}  Nd7 {[%clk 0:02:15]} 14. Bg3 {[%clk 0:02:16]}  c5 {[%clk 0:02:07]} 15. d5 {[%clk 0:01:49]}  b4 {[%clk 0:02:05]} 16. axb4 {[%clk 0:01:39]}  cxb4 {[%clk 0:02:05]} 17. Na4 {[%clk 0:01:30]}  exd5 {[%clk 0:01:57]} 18. Qxd5 {[%clk 0:01:31]}  Nf6 {[%clk 0:01:41]} 19. Qxd8 {[%clk 0:01:04]}  Raxd8 {[%clk 0:01:40]} 20. Ke2 {[%clk 0:01:02]}  Bd6 {[%clk 0:00:27]} 21. Bxd6 {[%clk 0:00:27]}  Rxd6 {[%clk 0:00:26]} 22. Rhd1 {[%clk 0:00:27]}  Rxd1 {[%clk 0:00:24]} 23. Rxd1 {[%clk 0:00:26]}  Rc8 {[%clk 0:00:24]} 24. Rd6 {[%clk 0:00:20]}  h5 {[%clk 0:00:23]} 25. f3 {[%clk 0:00:17]}  Rc2+ {[%clk 0:00:23]} 26. Rd2 {[%clk 0:00:17]}  Rc6 {[%clk 0:00:22]} 27. e4 {[%clk 0:00:14]}  h4 {[%clk 0:00:22]} 28. Ke3 {[%clk 0:00:10]}  Kf8 {[%clk 0:00:21]} 29. Kd3 {[%clk 0:00:08]}  Ke7 {[%clk 0:00:19]} 30. Rc2 {[%clk 0:00:03]}  Rxc2 {[%clk 0:00:18]} 31. Kxc2 {[%clk 0:00:04]}  Kd6 {[%clk 0:00:17]} 32. Kd3 {[%clk 0:00:05]}  Nh5 {[%clk 0:00:17]} 33. Ke3 {[%clk 0:00:04]}  g5 {[%clk 0:00:16]} 34. b3 {[%clk 0:00:03]}  a5 {[%clk 0:00:16]} 35. Nb2 {[%clk 0:00:03]}  Kc5 {[%clk 0:00:15]} 36. Nd3+ {[%clk 0:00:03]}  Kb5 {[%clk 0:00:16]} 37. Nb2 {[%clk 0:00:04]}  Nf4 {[%clk 0:00:14]} 38. g3 {[%clk 0:00:04]}  hxg3 {[%clk 0:00:14]} 39. hxg3 {[%clk 0:00:05]}  Ne6 {[%clk 0:00:14]} 40. Nd1 {[%clk 0:00:01]}  Nc5 {[%clk 0:00:13]} 41. f4 {[%clk 0:00:01]}  gxf4+ {[%clk 0:00:12]} 42. gxf4 {[%clk 0:00:02]}  Nxb3 {[%clk 0:00:12]} 43. e5 {[%clk 0:00:03]}  Nc5 {[%clk 0:00:12]} 44. Kd4 {[%clk 0:00:04]}  a4 {[%clk 0:00:11]} 45. f5 {[%clk 0:00:03]}  a3 {[%clk 0:00:10]} 46. Ne3 {[%clk 0:00:03]}  a2 {[%clk 0:00:08]} 47. Nc2 {[%clk 0:00:04]}  b3 {[%clk 0:00:08]} 48. Na1 {[%clk 0:00:02]}  b2 {[%clk 0:00:08]} 0-1


[Site "https://www.chess.com"]

[Event "Titled Tuesday Blitz August 08 Late 2023"]
[White "Filipets, Egor"]
[Black "Klukin, Kirill"]
[WhiteFideId "13503928"]
[BlackFideId "24199273"]
[WhiteElo "2547"]
[BlackElo "2759"]
[Result "0-1"]
[Round "6"]
[TimeControl "180+1"]
[Date "2023.08.08"]
[WhiteClock "0:00:09"]
[BlackClock "0:00:47"]
[Board "34"]

1. c4 {[%clk 0:02:59]}  Nf6 {[%clk 0:02:58]} 2. g3 {[%clk 0:02:54]}  g6 {[%clk 0:02:58]} 3. Bg2 {[%clk 0:02:54]}  Bg7 {[%clk 0:02:59]} 4. Nf3 {[%clk 0:02:55]}  O-O {[%clk 0:03:00]} 5. O-O {[%clk 0:02:56]}  c6 {[%clk 0:03:00]} 6. d4 {[%clk 0:02:56]}  d6 {[%clk 0:03:01]} 7. Nc3 {[%clk 0:02:56]}  Bf5 {[%clk 0:03:01]} 8. Nh4 {[%clk 0:02:55]}  Be6 {[%clk 0:03:02]} 9. d5 {[%clk 0:02:55]}  cxd5 {[%clk 0:03:02]} 10. cxd5 {[%clk 0:02:56]}  Bd7 {[%clk 0:03:03]} 11. e4 {[%clk 0:02:54]}  Na6 {[%clk 0:03:03]} 12. Be3 {[%clk 0:02:48]}  Qa5 {[%clk 0:03:03]} 13. a3 {[%clk 0:02:39]}  Rfc8 {[%clk 0:03:02]} 14. Bd4 {[%clk 0:02:38]}  Ng4 {[%clk 0:02:53]} 15. b4 {[%clk 0:02:15]}  Qd8 {[%clk 0:02:50]} 16. Rc1 {[%clk 0:02:10]}  Ne5 {[%clk 0:02:28]} 17. f4 {[%clk 0:01:44]}  Nc4 {[%clk 0:02:27]} 18. Bxg7 {[%clk 0:01:44]}  Kxg7 {[%clk 0:02:27]} 19. Qd4+ {[%clk 0:01:44]}  f6 {[%clk 0:02:25]} 20. b5 {[%clk 0:01:39]}  Nb8 {[%clk 0:02:12]} 21. a4 {[%clk 0:01:39]}  Qb6 {[%clk 0:02:04]} 22. Rfd1 {[%clk 0:01:35]}  Nb2 {[%clk 0:01:59]} 23. Rd2 {[%clk 0:00:45]}  Nxa4 {[%clk 0:01:47]} 24. Qxb6 {[%clk 0:00:24]}  axb6 {[%clk 0:01:45]} 25. Ra2 {[%clk 0:00:21]}  Nxc3 {[%clk 0:01:32]} 26. Rxa8 {[%clk 0:00:18]}  Ne2+ {[%clk 0:01:33]} 27. Kf2 {[%clk 0:00:19]}  Nxc1 {[%clk 0:01:33]} 28. Bf1 {[%clk 0:00:19]}  Nb3 {[%clk 0:01:33]} 29. Nf3 {[%clk 0:00:20]}  Nc5 {[%clk 0:01:32]} 30. Nd4 {[%clk 0:00:20]}  Nxe4+ {[%clk 0:01:32]} 31. Ke3 {[%clk 0:00:20]}  Nc5 {[%clk 0:01:32]} 32. Bc4 {[%clk 0:00:21]}  Kf7 {[%clk 0:01:26]} 33. h4 {[%clk 0:00:20]}  Ke8 {[%clk 0:01:24]} 34. h5 {[%clk 0:00:20]}  gxh5 {[%clk 0:01:24]} 35. f5 {[%clk 0:00:20]}  Kd8 {[%clk 0:01:21]} 36. Ne6+ {[%clk 0:00:21]}  Nxe6 {[%clk 0:01:07]} 37. fxe6 {[%clk 0:00:22]}  Rxc4 {[%clk 0:01:00]} 38. exd7 {[%clk 0:00:22]}  Kxd7 {[%clk 0:00:54]} 39. Rxb8 {[%clk 0:00:22]}  Rg4 {[%clk 0:00:55]} 40. Rxb7+ {[%clk 0:00:21]}  Kd8 {[%clk 0:00:51]} 41. Rxb6 {[%clk 0:00:20]}  Rxg3+ {[%clk 0:00:51]} 42. Kf4 {[%clk 0:00:20]}  Rg5 {[%clk 0:00:50]} 43. Ke4 {[%clk 0:00:18]}  h4 {[%clk 0:00:48]} 44. Rb8+ {[%clk 0:00:17]}  Kc7 {[%clk 0:00:48]} 45. Rh8 {[%clk 0:00:18]}  Rh5 {[%clk 0:00:48]} 46. Re8 {[%clk 0:00:16]}  h3 {[%clk 0:00:46]} 47. Rxe7+ {[%clk 0:00:16]}  Kb6 {[%clk 0:00:47]} 48. Rxh7 {[%clk 0:00:09]}  Rxh7 {[%clk 0:00:47]} 0-1


[Site "https://www.chess.com"]

[Event "Titled Tuesday Blitz August 08 Late 2023"]
[White "Kobo, Ori"]
[Black "Principe, Alexander"]
[WhiteFideId "2812320"]
[BlackFideId "3804542"]
[WhiteElo "2742"]
[BlackElo "2575"]
[Result "1-0"]
[Round "6"]
[TimeControl "180+1"]
[Date "2023.08.08"]
[WhiteClock "0:00:13"]
[BlackClock "0:00:04"]
[Board "35"]

1. e4 {[%clk 0:03:00]}  e6 {[%clk 0:03:00]} 2. d3 {[%clk 0:03:00]}  d5 {[%clk 0:03:00]} 3. Nd2 {[%clk 0:03:00]}  c5 {[%clk 0:03:00]} 4. g3 {[%clk 0:03:00]}  Nc6 {[%clk 0:03:00]} 5. Bg2 {[%clk 0:03:00]}  Nge7 {[%clk 0:03:01]} 6. f4 {[%clk 0:02:58]}  g6 {[%clk 0:02:55]} 7. Ngf3 {[%clk 0:02:58]}  Bg7 {[%clk 0:02:56]} 8. O-O {[%clk 0:02:56]}  b6 {[%clk 0:02:56]} 9. e5 {[%clk 0:02:53]}  a5 {[%clk 0:02:54]} 10. Re1 {[%clk 0:02:51]}  Ba6 {[%clk 0:02:54]} 11. Nf1 {[%clk 0:02:49]}  Qd7 {[%clk 0:02:42]} 12. a3 {[%clk 0:02:44]}  h5 {[%clk 0:02:29]} 13. h3 {[%clk 0:02:34]}  Nf5 {[%clk 0:02:26]} 14. Kh2 {[%clk 0:02:34]}  Ncd4 {[%clk 0:02:20]} 15. Ng5 {[%clk 0:02:25]}  Bb5 {[%clk 0:02:06]} 16. Ne3 {[%clk 0:02:11]}  Bh6 {[%clk 0:01:56]} 17. Nxf5 {[%clk 0:02:04]}  Nxf5 {[%clk 0:01:55]} 18. c4 {[%clk 0:01:52]}  Bxg5 {[%clk 0:01:43]} 19. cxb5 {[%clk 0:01:35]}  Be7 {[%clk 0:01:35]} 20. a4 {[%clk 0:01:23]}  O-O-O {[%clk 0:01:00]} 21. Bd2 {[%clk 0:01:19]}  Kb8 {[%clk 0:00:53]} 22. Rc1 {[%clk 0:01:07]}  Rc8 {[%clk 0:00:44]} 23. h4 {[%clk 0:00:55]}  Rc7 {[%clk 0:00:26]} 24. Bh3 {[%clk 0:00:55]}  Nd4 {[%clk 0:00:21]} 25. Bc3 {[%clk 0:00:49]}  Rhc8 {[%clk 0:00:21]} 26. Bg2 {[%clk 0:00:44]}  Qd8 {[%clk 0:00:20]} 27. Kh3 {[%clk 0:00:37]}  Nf5 {[%clk 0:00:19]} 28. Bf3 {[%clk 0:00:26]}  Bxh4 {[%clk 0:00:16]} 29. gxh4 {[%clk 0:00:22]}  Qxh4+ {[%clk 0:00:16]} 30. Kg2 {[%clk 0:00:22]}  Qg3+ {[%clk 0:00:14]} 31. Kf1 {[%clk 0:00:23]}  Qxf4 {[%clk 0:00:11]} 32. Bd2 {[%clk 0:00:20]}  Qh2 {[%clk 0:00:09]} 33. Bg2 {[%clk 0:00:18]}  h4 {[%clk 0:00:04]} 34. Qf3 {[%clk 0:00:16]}  Rh8 {[%clk 0:00:04]} 35. Qh3 {[%clk 0:00:15]}  Qg3 {[%clk 0:00:04]} 36. Qxg3 {[%clk 0:00:13]}  Nxg3+ {[%clk 0:00:04]} 37. Kf2 {[%clk 0:00:13]}  Nf5 {[%clk 0:00:05]} 38. Rh1 {[%clk 0:00:13]}  Rcc8 {[%clk 0:00:05]} 39. Bg5 {[%clk 0:00:13]}  Rh5 {[%clk 0:00:04]} 40. Bf6 {[%clk 0:00:11]}  Rg8 {[%clk 0:00:05]} 41. Bf3 {[%clk 0:00:11]}  Rh7 {[%clk 0:00:05]} 42. Rcg1 {[%clk 0:00:12]}  Kc7 {[%clk 0:00:05]} 43. Rg4 {[%clk 0:00:11]}  Kd7 {[%clk 0:00:04]} 44. Rh3 {[%clk 0:00:09]}  Ke8 {[%clk 0:00:03]} 45. Rg5 {[%clk 0:00:08]}  Kd7 {[%clk 0:00:03]} 46. Rg1 {[%clk 0:00:07]}  Rc8 {[%clk 0:00:03]} 47. Bg4 {[%clk 0:00:08]}  Nd4 {[%clk 0:00:03]} 48. Rxh4 {[%clk 0:00:06]}  Rxh4 {[%clk 0:00:03]} 49. Bxh4 {[%clk 0:00:07]}  c4 {[%clk 0:00:04]} 50. dxc4 {[%clk 0:00:06]}  Rxc4 {[%clk 0:00:05]} 51. Bd1 {[%clk 0:00:06]}  Nf5 {[%clk 0:00:04]} 52. Bf6 {[%clk 0:00:06]}  Re4 {[%clk 0:00:03]} 53. Rh1 {[%clk 0:00:06]}  Rf4+ {[%clk 0:00:04]} 54. Ke1 {[%clk 0:00:06]}  d4 {[%clk 0:00:04]} 55. Rh8 {[%clk 0:00:06]}  Ne3 {[%clk 0:00:03]} 56. Be2 {[%clk 0:00:03]}  Nf5 {[%clk 0:00:01]} 57. Rd8+ {[%clk 0:00:03]}  Kc7 {[%clk 0:00:02]} 58. Rf8 {[%clk 0:00:03]}  Re4 {[%clk 0:00:02]} 59. Rxf7+ {[%clk 0:00:04]}  Kc8 {[%clk 0:00:03]} 60. Kd2 {[%clk 0:00:04]}  Ng3 {[%clk 0:00:03]} 61. Rf8+ {[%clk 0:00:05]}  Kd7 {[%clk 0:00:03]} 62. Rf7+ {[%clk 0:00:06]}  Kc8 {[%clk 0:00:02]} 63. Bd3 {[%clk 0:00:07]}  Re3 {[%clk 0:00:02]} 64. Rf8+ {[%clk 0:00:08]}  Kd7 {[%clk 0:00:02]} 65. Rf7+ {[%clk 0:00:09]}  Kc8 {[%clk 0:00:03]} 66. Rg7 {[%clk 0:00:09]}  Nf5 {[%clk 0:00:02]} 67. Rg8+ {[%clk 0:00:10]}  Kd7 {[%clk 0:00:01]} 68. Rxg6 {[%clk 0:00:11]}  Rf3 {[%clk 0:00:01]} 69. Bxf5 {[%clk 0:00:11]}  Rxf5 {[%clk 0:00:01]} 70. Rg7+ {[%clk 0:00:11]}  Ke8 {[%clk 0:00:01]} 71. Kd3 {[%clk 0:00:12]}  Kf8 {[%clk 0:00:02]} 72. Rb7 {[%clk 0:00:11]}  Rf4 {[%clk 0:00:03]} 73. Rxb6 {[%clk 0:00:11]}  Kf7 {[%clk 0:00:04]} 74. Rb8 {[%clk 0:00:12]}  Kg6 {[%clk 0:00:04]} 75. b6 {[%clk 0:00:12]}  Kf5 {[%clk 0:00:04]} 76. b7 {[%clk 0:00:13]} 1-0


[Site "https://www.chess.com"]

[Event "Titled Tuesday Blitz August 08 Late 2023"]
[White "Papayan, Oleg"]
[Black "Prohaszka, Peter"]
[WhiteFideId "4193911"]
[BlackFideId "726265"]
[WhiteElo "2541"]
[BlackElo "2721"]
[Result "1/2-1/2"]
[Round "6"]
[TimeControl "180+1"]
[Date "2023.08.08"]
[WhiteClock "0:01:02"]
[BlackClock "0:00:24"]
[Board "36"]

1. e4 {[%clk 0:03:00]}  c6 {[%clk 0:02:56]} 2. Nc3 {[%clk 0:03:00]}  d5 {[%clk 0:02:56]} 3. Nf3 {[%clk 0:03:01]}  dxe4 {[%clk 0:02:57]} 4. Nxe4 {[%clk 0:03:02]}  Nf6 {[%clk 0:02:58]} 5. Qe2 {[%clk 0:03:02]}  Nxe4 {[%clk 0:02:58]} 6. Qxe4 {[%clk 0:03:03]}  Qa5 {[%clk 0:02:59]} 7. b4 {[%clk 0:03:03]}  Qf5 {[%clk 0:02:58]} 8. Qe3 {[%clk 0:03:04]}  Qxc2 {[%clk 0:02:58]} 9. Bd3 {[%clk 0:03:01]}  Qa4 {[%clk 0:02:59]} 10. a3 {[%clk 0:03:01]}  a5 {[%clk 0:02:47]} 11. Bb2 {[%clk 0:03:02]}  axb4 {[%clk 0:02:42]} 12. axb4 {[%clk 0:03:03]}  Qxa1+ {[%clk 0:02:42]} 13. Bxa1 {[%clk 0:03:04]}  Rxa1+ {[%clk 0:02:42]} 14. Ke2 {[%clk 0:03:04]}  Rxh1 {[%clk 0:02:43]} 15. Qe5 {[%clk 0:03:05]}  Na6 {[%clk 0:02:16]} 16. Bxa6 {[%clk 0:03:05]}  bxa6 {[%clk 0:02:16]} 17. Qb8 {[%clk 0:03:05]}  f6 {[%clk 0:02:17]} 18. Qxc8+ {[%clk 0:03:02]}  Kf7 {[%clk 0:02:17]} 19. Qxc6 {[%clk 0:02:55]}  Rb1 {[%clk 0:01:24]} 20. Nd4 {[%clk 0:02:37]}  Rxb4 {[%clk 0:00:55]} 21. Qe6+ {[%clk 0:02:37]}  Kg6 {[%clk 0:00:30]} 22. Qg4+ {[%clk 0:02:08]}  Kf7 {[%clk 0:00:27]} 23. Qe6+ {[%clk 0:01:45]}  Kg6 {[%clk 0:00:27]} 24. Qe4+ {[%clk 0:01:15]}  Kf7 {[%clk 0:00:24]} 25. Qe6+ {[%clk 0:01:02]} 1/2-1/2


[Site "https://www.chess.com"]

[Event "Titled Tuesday Blitz August 08 Late 2023"]
[White "Loay, Sameer"]
[Black "Morefield, Jason"]
[WhiteFideId "8104239"]
[BlackFideId "30920825"]
[WhiteElo "2539"]
[BlackElo "2716"]
[Result "0-1"]
[Round "6"]
[TimeControl "180+1"]
[Date "2023.08.08"]
[WhiteClock "0:00:20"]
[BlackClock "0:00:08"]
[Board "37"]

1. Nf3 {[%clk 0:02:57]}  d5 {[%clk 0:02:59]} 2. g3 {[%clk 0:02:56]}  g6 {[%clk 0:02:59]} 3. Bg2 {[%clk 0:02:57]}  Bg7 {[%clk 0:03:00]} 4. d4 {[%clk 0:02:56]}  c6 {[%clk 0:02:59]} 5. O-O {[%clk 0:02:57]}  Nf6 {[%clk 0:02:58]} 6. c4 {[%clk 0:02:57]}  dxc4 {[%clk 0:02:58]} 7. a4 {[%clk 0:02:54]}  O-O {[%clk 0:02:55]} 8. Na3 {[%clk 0:02:51]}  Bf5 {[%clk 0:02:48]} 9. Nxc4 {[%clk 0:02:50]}  Nbd7 {[%clk 0:02:48]} 10. Nfe5 {[%clk 0:02:49]}  Nxe5 {[%clk 0:02:46]} 11. Nxe5 {[%clk 0:02:45]}  Nd7 {[%clk 0:02:32]} 12. Nc4 {[%clk 0:02:16]}  Nb6 {[%clk 0:02:27]} 13. Nxb6 {[%clk 0:02:16]}  axb6 {[%clk 0:02:27]} 14. e4 {[%clk 0:02:16]}  Be6 {[%clk 0:02:25]} 15. Be3 {[%clk 0:02:15]}  Bc4 {[%clk 0:02:12]} 16. Re1 {[%clk 0:02:14]}  Qd7 {[%clk 0:01:37]} 17. b3 {[%clk 0:02:10]}  Be6 {[%clk 0:01:37]} 18. Rc1 {[%clk 0:01:53]}  Bg4 {[%clk 0:01:25]} 19. Qd2 {[%clk 0:01:39]}  Bh3 {[%clk 0:01:07]} 20. d5 {[%clk 0:01:31]}  Bxg2 {[%clk 0:01:05]} 21. Kxg2 {[%clk 0:01:32]}  cxd5 {[%clk 0:00:57]} 22. exd5 {[%clk 0:01:31]}  b5 {[%clk 0:00:55]} 23. Bc5 {[%clk 0:01:30]}  Rfd8 {[%clk 0:00:50]} 24. d6 {[%clk 0:01:02]}  exd6 {[%clk 0:00:45]} 25. Bb6 {[%clk 0:01:02]}  Rdc8 {[%clk 0:00:44]} 26. a5 {[%clk 0:01:03]}  Rxc1 {[%clk 0:00:38]} 27. Rxc1 {[%clk 0:01:04]}  Qe6 {[%clk 0:00:26]} 28. Qe3 {[%clk 0:00:55]}  Qf5 {[%clk 0:00:15]} 29. Qf3 {[%clk 0:00:51]}  Qxf3+ {[%clk 0:00:12]} 30. Kxf3 {[%clk 0:00:52]}  Bh6 {[%clk 0:00:09]} 31. Rd1 {[%clk 0:00:41]}  Bf8 {[%clk 0:00:06]} 32. Ke4 {[%clk 0:00:40]}  Rc8 {[%clk 0:00:05]} 33. Kd5 {[%clk 0:00:34]}  b4 {[%clk 0:00:04]} 34. Re1 {[%clk 0:00:33]}  Rc3 {[%clk 0:00:03]} 35. Re8 {[%clk 0:00:29]}  Rxb3 {[%clk 0:00:04]} 36. Kc4 {[%clk 0:00:29]}  Rb1 {[%clk 0:00:04]} 37. Bd4 {[%clk 0:00:28]}  d5+ {[%clk 0:00:03]} 38. Kxd5 {[%clk 0:00:25]}  Rd1 {[%clk 0:00:02]} 39. Kc4 {[%clk 0:00:25]}  Rc1+ {[%clk 0:00:02]} 40. Kb3 {[%clk 0:00:24]}  f5 {[%clk 0:00:02]} 41. Rb8 {[%clk 0:00:21]}  Rc7 {[%clk 0:00:02]} 42. Be5 {[%clk 0:00:20]}  Rd7 {[%clk 0:00:02]} 43. Bf4 {[%clk 0:00:17]}  Kf7 {[%clk 0:00:02]} 44. Rc8 {[%clk 0:00:17]}  Bg7 {[%clk 0:00:02]} 45. Rc5 {[%clk 0:00:17]}  Bf8 {[%clk 0:00:03]} 46. Rb5 {[%clk 0:00:17]}  h6 {[%clk 0:00:02]} 47. Be3 {[%clk 0:00:17]}  g5 {[%clk 0:00:02]} 48. h4 {[%clk 0:00:16]}  Kg6 {[%clk 0:00:03]} 49. hxg5 {[%clk 0:00:16]}  hxg5 {[%clk 0:00:04]} 50. Rb6+ {[%clk 0:00:16]}  Kh5 {[%clk 0:00:03]} 51. f3 {[%clk 0:00:16]}  Rd3+ {[%clk 0:00:02]} 52. Kc4 {[%clk 0:00:16]}  Rxe3 {[%clk 0:00:03]} 53. Rxb7 {[%clk 0:00:17]}  Rc3+ {[%clk 0:00:03]} 54. Kd4 {[%clk 0:00:18]}  Rxf3 {[%clk 0:00:03]} 55. Rb5 {[%clk 0:00:18]}  Ra3 {[%clk 0:00:04]} 56. Rxf5 {[%clk 0:00:18]}  Kg4 {[%clk 0:00:04]} 57. Rxf8 {[%clk 0:00:18]}  Rxa5 {[%clk 0:00:03]} 58. Kc4 {[%clk 0:00:18]}  Rf5 {[%clk 0:00:03]} 59. Rg8 {[%clk 0:00:18]}  Kxg3 {[%clk 0:00:03]} 60. Kxb4 {[%clk 0:00:19]}  g4 {[%clk 0:00:04]} 61. Kc3 {[%clk 0:00:19]}  Re5 {[%clk 0:00:03]} 62. Kd4 {[%clk 0:00:19]}  Re7 {[%clk 0:00:02]} 63. Kd3 {[%clk 0:00:20]}  Kf3 {[%clk 0:00:03]} 64. Rf8+ {[%clk 0:00:20]}  Kg2 {[%clk 0:00:03]} 65. Rg8 {[%clk 0:00:21]}  g3 {[%clk 0:00:04]} 66. Rg4 {[%clk 0:00:22]}  Kf3 {[%clk 0:00:04]} 67. Rg8 {[%clk 0:00:22]}  g2 {[%clk 0:00:05]} 68. Rf8+ {[%clk 0:00:23]}  Kg3 {[%clk 0:00:05]} 69. Rg8+ {[%clk 0:00:23]}  Kf2 {[%clk 0:00:06]} 70. Rf8+ {[%clk 0:00:24]}  Kg1 {[%clk 0:00:07]} 71. Rg8 {[%clk 0:00:25]}  Re5 {[%clk 0:00:07]} 72. Kd2 {[%clk 0:00:24]}  Kf2 {[%clk 0:00:07]} 73. Rf8+ {[%clk 0:00:24]}  Kg3 {[%clk 0:00:07]} 74. Rg8+ {[%clk 0:00:24]}  Kf3 {[%clk 0:00:08]} 75. Kd1 {[%clk 0:00:20]}  Re4 {[%clk 0:00:08]} 0-1


[Site "https://www.chess.com"]

[Event "Titled Tuesday Blitz August 08 Late 2023"]
[White "Martinez Alcantara, Jose Eduardo"]
[Black "brm72"]
[WhiteFideId "3805662"]
[WhiteElo "3029"]
[BlackElo "2529"]
[Result "1-0"]
[Round "6"]
[TimeControl "180+1"]
[Date "2023.08.08"]
[WhiteClock "0:01:45"]
[BlackClock "0:00:09"]
[Board "39"]

1. e4 {[%clk 0:03:00]}  c5 {[%clk 0:03:00]} 2. a3 {[%clk 0:03:01]}  d5 {[%clk 0:02:57]} 3. exd5 {[%clk 0:03:01]}  Qxd5 {[%clk 0:02:58]} 4. Nc3 {[%clk 0:03:02]}  Qd6 {[%clk 0:02:55]} 5. b4 {[%clk 0:03:02]}  Nc6 {[%clk 0:02:52]} 6. Nf3 {[%clk 0:03:02]}  Bg4 {[%clk 0:02:48]} 7. Be2 {[%clk 0:03:02]}  Nf6 {[%clk 0:02:48]} 8. h3 {[%clk 0:03:01]}  Bh5 {[%clk 0:02:47]} 9. O-O {[%clk 0:03:01]}  e6 {[%clk 0:02:47]} 10. Nb5 {[%clk 0:03:00]}  Qd8 {[%clk 0:02:46]} 11. bxc5 {[%clk 0:03:00]}  Bxc5 {[%clk 0:02:47]} 12. d4 {[%clk 0:03:01]}  Bb6 {[%clk 0:02:47]} 13. Bf4 {[%clk 0:02:58]}  O-O {[%clk 0:02:46]} 14. Nd6 {[%clk 0:02:46]}  Qd7 {[%clk 0:02:41]} 15. Nc4 {[%clk 0:02:39]}  Bc7 {[%clk 0:02:39]} 16. Bg5 {[%clk 0:02:33]}  Nd5 {[%clk 0:02:33]} 17. Qd3 {[%clk 0:02:27]}  Nf4 {[%clk 0:02:28]} 18. Bxf4 {[%clk 0:02:26]}  Bxf4 {[%clk 0:02:28]} 19. c3 {[%clk 0:02:25]}  Bg6 {[%clk 0:02:18]} 20. Qd1 {[%clk 0:02:25]}  Rac8 {[%clk 0:02:18]} 21. a4 {[%clk 0:02:25]}  Rfd8 {[%clk 0:02:17]} 22. Bd3 {[%clk 0:02:23]}  Bb8 {[%clk 0:02:09]} 23. Bxg6 {[%clk 0:02:23]}  hxg6 {[%clk 0:02:10]} 24. Ne3 {[%clk 0:02:23]}  Ne7 {[%clk 0:02:08]} 25. Qb3 {[%clk 0:02:24]}  Nd5 {[%clk 0:02:03]} 26. c4 {[%clk 0:02:24]}  Nf4 {[%clk 0:02:01]} 27. Rfe1 {[%clk 0:02:23]}  Qe7 {[%clk 0:01:56]} 28. Rad1 {[%clk 0:02:20]}  Qf6 {[%clk 0:01:54]} 29. Qxb7 {[%clk 0:02:17]}  g5 {[%clk 0:01:33]} 30. Qe4 {[%clk 0:02:11]}  g6 {[%clk 0:01:24]} 31. g3 {[%clk 0:02:08]}  Nh5 {[%clk 0:00:54]} 32. Kg2 {[%clk 0:02:07]}  Kg7 {[%clk 0:00:45]} 33. d5 {[%clk 0:02:05]}  Re8 {[%clk 0:00:36]} 34. d6 {[%clk 0:02:05]}  Red8 {[%clk 0:00:30]} 35. Ng4 {[%clk 0:02:05]}  Qf5 {[%clk 0:00:29]} 36. Qd4+ {[%clk 0:02:04]}  Kh7 {[%clk 0:00:23]} 37. Re5 {[%clk 0:02:03]}  Qc2 {[%clk 0:00:22]} 38. Nxg5+ {[%clk 0:02:01]}  Kg8 {[%clk 0:00:21]} 39. Nh6+ {[%clk 0:01:51]}  Kf8 {[%clk 0:00:21]} 40. Rxe6 {[%clk 0:01:49]}  Ng7 {[%clk 0:00:09]} 41. Re7 {[%clk 0:01:45]} 1-0


[Site "https://www.chess.com"]

[Event "Titled Tuesday Blitz August 08 Late 2023"]
[White "Khanin, Semen"]
[Black "Keleberda, Tymur"]
[WhiteFideId "4111990"]
[BlackFideId "14174294"]
[WhiteElo "2871"]
[BlackElo "2555"]
[Result "1-0"]
[Round "6"]
[TimeControl "180+1"]
[Date "2023.08.08"]
[WhiteClock "0:01:11"]
[BlackClock "0:00:08"]
[Board "41"]

1. e4 {[%clk 0:03:00]}  c5 {[%clk 0:02:59]} 2. Nf3 {[%clk 0:03:00]}  d6 {[%clk 0:03:00]} 3. d4 {[%clk 0:02:58]}  cxd4 {[%clk 0:03:01]} 4. Nxd4 {[%clk 0:02:59]}  Nf6 {[%clk 0:03:01]} 5. c3 {[%clk 0:03:00]}  a6 {[%clk 0:03:01]} 6. Bd3 {[%clk 0:02:59]}  e5 {[%clk 0:02:57]} 7. Ne2 {[%clk 0:02:56]}  b5 {[%clk 0:02:56]} 8. O-O {[%clk 0:02:55]}  Bb7 {[%clk 0:02:56]} 9. Ng3 {[%clk 0:02:55]}  g6 {[%clk 0:02:56]} 10. a4 {[%clk 0:02:55]}  bxa4 {[%clk 0:02:53]} 11. Qxa4+ {[%clk 0:02:54]}  Nbd7 {[%clk 0:02:54]} 12. Bc4 {[%clk 0:02:49]}  h5 {[%clk 0:02:50]} 13. Qb3 {[%clk 0:02:20]}  Nc5 {[%clk 0:02:42]} 14. Bxf7+ {[%clk 0:02:20]}  Ke7 {[%clk 0:02:33]} 15. Qa2 {[%clk 0:02:19]}  h4 {[%clk 0:02:29]} 16. b4 {[%clk 0:02:16]}  hxg3 {[%clk 0:02:08]} 17. bxc5 {[%clk 0:02:16]}  gxh2+ {[%clk 0:02:02]} 18. Kh1 {[%clk 0:02:16]}  d5 {[%clk 0:02:02]} 19. Bxg6 {[%clk 0:02:09]}  Bh6 {[%clk 0:02:01]} 20. Ba3 {[%clk 0:02:07]}  Bc6 {[%clk 0:01:59]} 21. Nd2 {[%clk 0:01:47]}  Bf4 {[%clk 0:01:45]} 22. Nf3 {[%clk 0:01:36]}  Qg8 {[%clk 0:01:29]} 23. exd5 {[%clk 0:01:31]}  Nxd5 {[%clk 0:01:11]} 24. Be4 {[%clk 0:01:29]}  Rc8 {[%clk 0:00:42]} 25. Rfe1 {[%clk 0:01:18]}  Nxc3 {[%clk 0:00:37]} 26. Qxg8 {[%clk 0:01:18]}  Rhxg8 {[%clk 0:00:33]} 27. Bxc6 {[%clk 0:01:18]}  Rxc6 {[%clk 0:00:32]} 28. g3 {[%clk 0:01:13]}  Bh6 {[%clk 0:00:22]} 29. Nxe5 {[%clk 0:01:11]}  Re6 {[%clk 0:00:19]} 30. c6+ {[%clk 0:01:11]}  Kd8 {[%clk 0:00:08]} 31. Nf7+ {[%clk 0:01:11]} 1-0


[Site "https://www.chess.com"]